bitfinex-derivatives/quotes_BTCF0:USTF0_20240905
["timestamp","ask_amount","ask_price","bid_price","bid_amount"]
[1725506462720,0.38,57220.0,57199.0,0.4733]
[1725506462721,0.06117,57215.0,57199.0,0.4733]
[1725506462923,0.06117,57215.0,57205.0,0.061179]
[1725506463222,0.000262,57213.0,57205.0,0.061179]
[1725506466225,0.000262,57213.0,57201.0,0.000262]
[1725506466429,0.000262,57213.0,57208.0,0.061176]
[1725506467730,0.000262,57213.0,57211.0,0.061173]
[1725506469024,0.000262,57213.0,57204.0,0.3608]
[1725506469734,0.000262,57213.0,57208.0,0.061176]
[1725506470527,0.000262,57213.0,57201.0,0.000262]
[1725506470528,0.3608,57210.0,57201.0,0.000262]
[1725506470835,0.122366,57202.0,57201.0,0.000262]
[1725506471022,0.061183,57202.0,57201.0,0.000262]
[1725506471326,0.441183,57202.0,57201.0,0.000262]
[1725506473228,0.061183,57202.0,57201.0,0.000262]
[1725506473731,0.441183,57202.0,57201.0,0.000262]
[1725506476130,1.565663,57202.0,57191.0,0.3608]
[1725506476332,0.3608,57197.0,57191.0,0.3608]
[1725506477443,0.3608,57197.0,57188.0,0.00026224]
[1725506477444,0.061197,57189.0,57188.0,0.00026224]
[1725506477731,0.061197,57189.0,57177.0,0.3608]
[1725506477732,0.421997,57189.0,57177.0,0.3608]
[1725506477932,0.422004,57183.0,57177.0,0.3608]
[1725506478430,0.3608,57183.0,57180.0,0.061206]
[1725506478627,0.3608,57183.0,57180.0,0.148656]
[1725506479840,0.3608,57183.0,57178.0,0.08745]
[1725506480338,0.061206,57181.0,57178.0,0.08745]
[1725506481434,0.946687,57180.0,57179.0,0.06099673]
[1725506481630,0.3608,57180.0,57176.0,0.00026224]
[1725506482025,0.38,57179.0,57176.0,0.00026224]
[1725506482931,0.06121,57177.0,57176.0,0.00026224]
[1725506484832,0.3608,57180.0,57176.0,0.08771224]
[1725506485229,0.3608,57180.0,57176.0,0.14892324]
[1725506486128,0.3608,57180.0,57178.0,0.08745]
[1725506487137,0.3608,57180.0,57176.0,0.00026224]
[1725506487939,0.3608,57180.0,57178.0,0.061209]
[1725506489033,0.3608,57180.0,57176.0,0.00026224]
[1725506489238,0.3608,57180.0,57176.0,0.08771224]
[1725506489742,0.061208,57179.0,57176.0,0.08771224]
[1725506489937,0.12242,57177.0,57176.0,0.08771224]
[1725506490141,0.42201,57177.0,57155.0,0.1152]
[1725506490336,0.42201,57177.0,57158.0,0.14868]
[1725506490337,0.3608,57169.0,57158.0,0.14868]
[1725506490537,0.061226,57162.0,57158.0,0.14868]
[1725506490743,0.061222,57166.0,57161.0,0.08745]
[1725506490942,0.061222,57166.0,57164.0,0.08745]
[1725506491840,0.061222,57166.0,57164.0,0.148674]
[1725506493144,0.00088,57170.0,57166.0,0.08745]
[1725506493349,0.00026224,57171.0,57164.0,0.3608]
[1725506493350,0.00026224,57171.0,57170.0,0.148667]
[1725506494143,0.52502224,57171.0,57170.0,0.08745]
[1725506494342,1.12502224,57171.0,57165.0,0.08745]
[1725506494547,0.114,57170.0,57165.0,0.08745]
[1725506495051,0.061221,57167.0,57165.0,0.08745]
[1725506496246,0.061221,57167.0,57165.0,0.148673]
[1725506498552,0.061221,57167.0,57164.0,0.08745]
[1725506498744,0.061221,57167.0,57166.0,0.08745]
[1725506499757,0.061222,57166.0,57163.0,0.08745]
[1725506499947,0.3608,57169.0,57163.0,0.08745]
[1725506500249,0.3608,57169.0,57166.0,0.08745]
[1725506500751,0.061222,57167.0,57166.0,0.08745]
[1725506501440,1.247244,57167.0,57166.0,0.08745]
[1725506502457,0.061227,57161.0,57160.0,0.08745]
[1725506502749,0.061229,57159.0,57157.0,0.05223347]
[1725506502963,0.061237,57152.0,57150.0,0.05224972]
[1725506503147,0.06124,57149.0,57148.0,0.05225017]
[1725506503447,0.38,57149.0,57145.0,0.06952096]
[1725506503848,0.38,57149.0,57147.0,0.08745]
[1725506503849,0.061241,57148.0,57147.0,0.08745]
[1725506504051,0.594782,57148.0,57147.0,0.08745]
[1725506504250,0.00088,57151.0,57147.0,0.44825]
[1725506504447,0.061238,57151.0,57150.0,0.15697096]
[1725506504641,0.061238,57151.0,57150.0,0.08745]
[1725506504849,0.441238,57151.0,57150.0,0.08745]
[1725506505348,0.061238,57151.0,57146.0,0.08745]
[1725506505548,0.00026248,57153.0,57148.0,0.08745]
[1725506506458,0.00026248,57153.0,57150.0,0.08745]
[1725506508654,0.00026248,57153.0,57151.0,0.08745]
[1725506508955,0.00026248,57153.0,57152.0,0.148687]
[1725506513058,0.00026248,57153.0,57150.0,0.08745]
[1725506513256,0.00026248,57153.0,57150.0,0.148688]
[1725506513958,0.00026248,57153.0,57152.0,0.08745]
[1725506514854,0.00026248,57153.0,57152.0,0.148687]
[1725506521862,0.00026248,57153.0,57142.0,0.062247]
[1725506522065,0.52496,57152.0,57121.0,0.00104]
[1725506522363,0.52496,57152.0,57112.0,0.00081594]
[1725506522364,0.52496,57152.0,57100.0,0.5174]
[1725506522365,0.3608,57113.0,57100.0,0.5174]
[1725506522562,0.061257,57133.0,57100.0,0.5174]
[1725506522563,0.66909,57101.0,57100.0,0.5254]
[1725506522765,0.61658,57101.0,57100.0,0.5254]
[1725506522951,0.56407,57101.0,57100.0,1.1254]
[1725506523159,0.51156,57101.0,57100.0,1.1254]
[1725506523457,0.40654,57101.0,57100.0,1.1254]
[1725506523761,0.40654,57101.0,57090.0,0.00169]
[1725506523762,0.061293,57100.0,57090.0,0.00169]
[1725506524057,0.31629095,57097.0,57090.0,0.00169]
[1725506524248,0.26378095,57097.0,57090.0,0.00169]
[1725506524558,0.21127095,57097.0,57090.0,0.00169]
[1725506524764,0.10625095,57097.0,57090.0,0.00169]
[1725506525061,0.30829,57098.0,57097.0,0.08745]
[1725506525260,0.20327,57098.0,57097.0,0.08745]
[1725506525648,0.15076,57098.0,57097.0,0.05246]
[1725506525850,0.36106248,57106.0,57097.0,0.05246]
[1725506526060,0.31655343,57106.0,57097.0,0.05246]
[1725506526260,0.26404343,57106.0,57097.0,0.05246]
[1725506526459,0.30829,57110.0,57099.0,0.01747]
[1725506526660,0.3608,57119.0,57099.0,0.01747]
[1725506526661,0.00877516,57117.0,57099.0,0.01747]
[1725506526852,0.3608,57119.0,57099.0,0.01747]
[1725506526853,0.061287,57106.0,57099.0,0.01747]
[1725506527055,0.0002627,57108.0,57099.0,0.01747]
[1725506527256,0.061287,57106.0,57099.0,0.01747]
[1725506527454,0.0002627,57108.0,57099.0,0.01747]
[1725506527759,0.0002627,57108.0,57097.0,0.0002627]
[1725506529160,0.422095,57098.0,57097.0,0.0002627]
[1725506529357,0.422095,57098.0,57095.0,0.01747]
[1725506529358,0.3608,57104.0,57091.0,0.35691474]
[1725506529860,0.061297,57096.0,57091.0,0.35691474]
[1725506530258,0.0613,57093.0,57091.0,0.35691474]
[1725506530450,0.3608,57097.0,57088.0,0.0002627]
[1725506530855,0.061295,57098.0,57091.0,0.3608]
[1725506531264,0.061296,57097.0,57091.0,0.3608]
[1725506531456,0.061296,57097.0,57088.0,0.0002627]
[1725506531651,0.3608,57097.0,57088.0,0.0002627]
[1725506531955,0.27,57094.0,57088.0,0.0002627]
[1725506532756,0.27,57091.0,57088.0,0.0002627]
[1725506533064,0.27,57092.0,57088.0,0.0002627]
[1725506533364,0.2702627,57099.0,57091.0,0.3608]
[1725506533768,0.27,57095.0,57091.0,0.3608]
[1725506536162,0.0615567,57099.0,57091.0,0.3608]
[1725506536371,0.27,57097.0,57091.0,0.3608]
[1725506536564,0.2525,57097.0,57091.0,0.3608]
[1725506536760,0.0002627,57099.0,57096.0,0.3608]
[1725506537960,0.043795,57098.0,57096.0,0.3608]
[1725506538161,0.0002627,57099.0,57096.0,0.3608]
[1725506538661,0.2527627,57102.0,57096.0,0.3608]
[1725506539561,0.3140537,57102.0,57096.0,0.3608]
[1725506540653,0.3140537,57102.0,57097.0,0.061295]
[1725506541057,0.2965537,57102.0,57097.0,0.061295]
[1725506541561,0.2352627,57102.0,57098.0,0.061294]
[1725506542057,0.3315497,57105.0,57099.0,0.061293]
[1725506542253,0.061283,57109.0,57096.0,0.38163632]
[1725506542466,0.27,57111.0,57107.0,0.061285]
[1725506542665,0.27,57111.0,57103.0,0.1075]
[1725506543068,0.061282,57110.0,57104.0,0.061288]
[1725506543262,0.061282,57110.0,57105.0,0.061287]
[1725506543461,0.061282,57110.0,57106.0,0.061286]
[1725506543660,0.0002627,57113.0,57109.0,0.3608]
[1725506544565,0.0002627,57113.0,57111.0,0.06128]
[1725506544783,0.0002627,57113.0,57112.0,0.06128]
[1725506546364,0.27,57123.0,57117.0,0.061274]
[1725506546565,0.27,57123.0,57118.0,0.4692]
[1725506546770,0.061267,57124.0,57120.0,0.061271]
[1725506546972,0.27,57126.0,57121.0,0.06127]
[1725506547156,0.27,57126.0,57122.0,0.061268]
[1725506547355,0.27,57129.0,57126.0,0.061264]
[1725506547865,0.27,57129.0,57118.0,0.0011427]
[1725506547866,0.88596,57128.0,57118.0,0.0011427]
[1725506548071,0.331272,57119.0,57118.0,0.0002627]
[1725506548272,0.392544,57119.0,57118.0,0.0002627]
[1725506548463,0.331272,57119.0,57118.0,0.0002627]
[1725506548666,0.331272,57119.0,57105.0,0.3608]
[1725506548667,0.061286,57106.0,57105.0,0.3608]
[1725506548861,0.27,57108.0,57105.0,0.3608]
[1725506549062,0.27,57108.0,57101.0,0.1084]
[1725506549262,0.27,57104.0,57103.0,0.05226558]
[1725506549471,0.27,57104.0,57101.0,0.1084]
[1725506549472,0.27,57104.0,57102.0,0.05226558]
[1725506549968,0.22617816,57104.0,57103.0,0.06968745]
[1725506550173,0.0615457,57109.0,57103.0,0.061289]
[1725506550480,0.061284,57108.0,57107.0,0.05225316]
[1725506550865,0.0002627,57109.0,57104.0,0.13095889]
[1725506551059,0.0002627,57109.0,57108.0,0.05225298]
[1725506551367,0.0002627,57109.0,57108.0,0.27]
[1725506551558,0.0002627,57109.0,57108.0,0.55185954]
[1725506551759,0.0002627,57109.0,57108.0,0.46475023]
[1725506552079,0.0002627,57109.0,57108.0,1.06007023]
[1725506552281,0.0002627,57109.0,57108.0,1.14736151]
[1725506552574,0.0002627,57109.0,57107.0,0.3608]
[1725506552575,0.0002627,57109.0,57107.0,0.44809128]
[1725506552760,0.0002627,57109.0,57107.0,0.3608]
[1725506552963,0.0002627,57109.0,57107.0,0.44809128]
[1725506553159,0.0002627,57109.0,57107.0,0.3608]
[1725506553365,0.0615457,57109.0,57106.0,0.08729128]
[1725506553665,0.061286,57106.0,57105.0,0.06984544]
[1725506553863,0.061286,57106.0,57101.0,0.10928]
[1725506553864,0.061288,57104.0,57103.0,0.06984544]
[1725506554061,0.043788,57104.0,57101.0,0.1084]
[1725506554279,0.043788,57104.0,57103.0,0.06985273]
[1725506554677,0.043788,57104.0,57101.0,0.1084]
[1725506554974,0.043788,57104.0,57102.0,0.08729128]
[1725506555275,0.061289,57103.0,57101.0,0.1084]
[1725506555769,0.0615457,57109.0,57103.0,0.061289]
[1725506555966,0.061284,57108.0,57107.0,0.06984609]
[1725506556171,0.0002627,57109.0,57105.0,0.06984609]
[1725506556373,0.0002627,57109.0,57104.0,0.06984609]
[1725506556374,0.061287,57105.0,57104.0,0.06984609]
[1725506557072,0.061287,57105.0,57104.0,0.00122573]
[1725506559266,0.061287,57105.0,57104.0,0.07107648]
[1725506560474,0.061287,57105.0,57104.0,0.00122573]
[1725506561675,0.0002627,57109.0,57108.0,0.061284]
[1725506561868,0.0002627,57109.0,57108.0,0.89676962]
[1725506562073,0.3608,57119.0,57117.0,0.061274]
[1725506562269,0.3608,57119.0,57117.0,0.11366184]
[1725506562667,0.06127,57122.0,57118.0,0.061273]
[1725506562872,0.06127,57122.0,57121.0,0.0523833]
[1725506563074,0.0002627,57127.0,57122.0,0.061269]
[1725506563278,0.0002627,57127.0,57120.0,0.00122573]
[1725506563279,0.0002627,57127.0,57126.0,0.061265]
[1725506563482,0.02129192,57137.0,57130.0,0.06126]
[1725506563669,0.7008,57142.0,57131.0,0.41316855]
[1725506563976,0.7008,57142.0,57136.0,0.00122573]
[1725506564175,0.34,57138.0,57136.0,0.00122573]
[1725506564668,0.061253,57137.0,57136.0,0.00122573]
[1725506565271,0.3608,57142.0,57136.0,0.00122573]
[1725506565474,0.422048,57142.0,57136.0,0.00122573]
[1725506565777,0.422048,57142.0,57136.0,0.05359428]
[1725506565984,0.422048,57142.0,57139.0,0.00122573]
[1725506566278,0.0002627,57143.0,57141.0,0.7008]
[1725506566470,0.0002627,57143.0,57141.0,0.34]
[1725506567073,0.0002627,57143.0,57142.0,0.00122573]
[1725506570774,0.3608,57163.0,57142.0,1.46622573]
[1725506570978,0.3608,57163.0,57158.0,0.34]
[1725506570979,0.061229,57159.0,57158.0,0.34]
[1725506571172,0.061229,57159.0,57158.0,0.00122573]
[1725506572479,0.043729,57159.0,57158.0,0.00122573]
[1725506574884,0.3608,57163.0,57158.0,0.00122573]
[1725506575180,0.3608,57163.0,57160.0,0.00122573]
[1725506575181,0.061227,57161.0,57160.0,0.00122573]
[1725506575384,0.122514,57133.0,57132.0,1e-06]
[1725506575582,0.122514,57133.0,57110.0,0.10474402]
[1725506575583,0.061275,57116.0,57115.0,0.05236855]
[1725506575780,0.3608,57116.0,57106.0,0.34]
[1725506575983,0.3608,57116.0,57106.0,0.7008]
[1725506575984,0.3608,57109.0,57106.0,0.7008]
[1725506576888,0.00026248,57113.0,57107.0,0.061284]
[1725506577281,0.00026248,57113.0,57111.0,0.06128]
[1725506577580,0.00026248,57113.0,57111.0,0.42208]
[1725506578482,0.00026248,57113.0,57111.0,0.3608]
[1725506582173,0.3608,57112.0,57111.0,0.3608]
[1725506583585,0.3608,57112.0,57088.0,0.001]
[1725506583586,0.88608,57112.0,57088.0,0.001]
[1725506583782,0.88608,57112.0,57051.0,0.07975227]
[1725506583783,0.3608,57082.0,57063.0,0.02105112]
[1725506583989,0.061338,57058.0,57057.0,0.36289625]
[1725506584180,0.3608,57059.0,57057.0,0.36289625]
[1725506584572,0.3608,57059.0,57058.0,0.34]
[1725506584792,0.3608,57064.0,57058.0,0.8658]
[1725506584979,0.3433,57064.0,57058.0,0.34]
[1725506585283,0.3433,57064.0,57057.0,0.00209625]
[1725506585284,0.3608,57061.0,57057.0,0.00209625]
[1725506585489,0.00026274,57067.0,57060.0,0.3608]
[1725506585676,0.00026274,57067.0,57064.0,0.34]
[1725506586176,0.34,57071.0,57060.0,0.3608]
[1725506586380,0.3608,57087.0,57070.0,0.7008]
[1725506586580,0.3608,57087.0,57073.0,0.06132]
[1725506586884,0.3608,57087.0,57074.0,0.34]
[1725506587080,0.401303,57090.0,57075.0,0.3608]
[1725506587281,0.401303,57090.0,57077.0,0.00026274]
[1725506587478,0.00026274,57089.0,57077.0,0.00026274]
[1725506588386,0.00026274,57089.0,57079.0,0.34]
[1725506588582,0.00026274,57089.0,57080.0,0.1122]
[1725506588778,0.3608,57086.0,57080.0,0.1122]
[1725506590386,0.3433,57086.0,57080.0,0.1122]
[1725506592187,0.3258,57086.0,57080.0,0.1122]
[1725506592580,0.3258,57086.0,57077.0,0.00026274]
[1725506592581,0.3608,57081.0,57077.0,0.00026274]
[1725506594784,0.404608,57086.0,57077.0,0.00026274]
[1725506595582,0.00026274,57089.0,57084.0,0.3608]
[1725506595792,0.00026274,57089.0,57088.0,0.34]
[1725506595984,0.00026274,57089.0,57088.0,1.5367]
[1725506596177,0.34026274,57089.0,57084.0,0.3608]
[1725506596385,0.061308,57086.0,57084.0,0.3608]
[1725506596591,0.34,57085.0,57084.0,1.7908]
[1725506596787,0.3225,57085.0,57084.0,1.75572]
[1725506596983,0.061308,57086.0,57084.0,1.75572]
[1725506597304,0.061308,57086.0,57084.0,0.32572]
[1725506598292,0.34,57087.0,57078.0,1.43]
[1725506598683,0.061313,57081.0,57075.0,0.02651174]
[1725506598992,0.3225,57087.0,57073.0,0.3608]
[1725506598993,0.3225,57087.0,57073.0,0.35224174]
[1725506599182,0.3225,57087.0,57074.0,1.43]
[1725506599690,0.061313,57081.0,57075.0,0.00026274]
[1725506600592,0.061313,57081.0,57075.0,0.06158174]
[1725506601889,0.061314,57080.0,57075.0,0.06158174]
[1725506602597,0.061314,57080.0,57076.0,0.061318]
[1725506602892,0.061314,57080.0,57075.0,0.00026274]
[1725506602893,0.3608,57088.0,57082.0,0.061311]
[1725506603100,0.422106,57088.0,57082.0,0.061311]
[1725506603396,0.3608,57088.0,57083.0,0.06131]
[1725506604190,0.3608,57088.0,57079.0,0.061315]
[1725506604595,0.06131,57084.0,57079.0,0.061315]
[1725506604999,0.06131,57084.0,57080.0,0.061313]
[1725506605297,0.04381,57084.0,57080.0,0.11368155]
[1725506605484,0.02627,57084.0,57080.0,0.11368155]
[1725506605684,0.422105,57088.0,57081.0,0.061313]
[1725506606087,0.061306,57087.0,57081.0,0.11368155]
[1725506606287,0.061307,57086.0,57082.0,0.11367955]
[1725506606503,0.061307,57086.0,57083.0,0.05236855]
[1725506607086,0.061307,57086.0,57084.0,0.05236855]
[1725506607294,0.00026274,57089.0,57085.0,0.05236855]
[1725506607496,0.00026274,57089.0,57088.0,0.11367355]
[1725506607799,0.00026274,57089.0,57088.0,0.061305]
[1725506609487,0.36106274,57089.0,57086.0,0.117]
[1725506610090,0.061306,57087.0,57086.0,0.117]
[1725506610298,0.36106274,57089.0,57086.0,0.117]
[1725506610489,0.00026274,57089.0,57086.0,0.26561907]
[1725506610695,0.00026274,57089.0,57087.0,0.14861907]
[1725506610890,0.00026274,57089.0,57086.0,0.117]
[1725506610891,0.40091358,57088.0,57086.0,0.20431307]
[1725506611093,0.40091358,57088.0,57086.0,0.117]
[1725506611298,0.061306,57087.0,57086.0,0.117]
[1725506611808,0.061306,57087.0,57086.0,0.08192]
[1725506612498,0.061306,57087.0,57086.0,0.30275002]
[1725506612698,0.061306,57087.0,57086.0,0.21543695]
[1725506613198,0.061306,57087.0,57086.0,0.27674395]
[1725506613411,0.00026274,57089.0,57087.0,0.061306]
[1725506613600,0.00026274,57089.0,57088.0,0.13351695]
[1725506613903,0.06156674,57089.0,57088.0,0.13351695]
[1725506614208,0.42236674,57089.0,57086.0,0.18666402]
[1725506614410,0.42236674,57089.0,57087.0,0.13352105]
[1725506614597,0.42236674,57089.0,57088.0,0.13352021]
[1725506615307,0.42236674,57089.0,57088.0,0.23826423]
[1725506615607,0.42236674,57089.0,57088.0,0.13352021]
[1725506616201,0.42236674,57089.0,57088.0,0.40561016]
[1725506617106,0.42236674,57089.0,57087.0,0.14882394]
[1725506617307,0.42236674,57089.0,57088.0,0.08751794]
[1725506617505,0.42236674,57089.0,57087.0,0.14882394]
[1725506617710,0.42236674,57089.0,57088.0,0.10958091]
[1725506617899,0.00026274,57089.0,57088.0,0.40942074]
[1725506618095,0.3608,57100.0,57099.0,0.061293]
[1725506618298,0.3608,57105.0,57101.0,0.061291]
[1725506618499,0.3608,57105.0,57104.0,0.05246971]
[1725506618997,0.34,57108.0,57104.0,0.10955088]
[1725506619303,0.34,57108.0,57105.0,0.17950511]
[1725506619508,0.34,57108.0,57107.0,0.05242681]
[1725506619802,0.00026274,57110.0,57107.0,0.05242681]
[1725506620003,0.00026274,57110.0,57107.0,0.11371181]
[1725506620201,0.00026274,57110.0,57109.0,0.05242681]
[1725506620600,0.00026274,57110.0,57105.0,0.05242681]
[1725506620601,0.061286,57107.0,57105.0,0.05242681]
[1725506621006,0.061286,57107.0,57104.0,0.05242681]
[1725506621211,0.06129,57103.0,57101.0,0.06995423]
[1725506621405,0.06129,57103.0,57100.0,0.1186]
[1725506621406,0.34,57102.0,57100.0,0.1186]
[1725506622012,0.34,57102.0,57101.0,0.061291]
[1725506622197,0.34,57102.0,57101.0,0.17084599]
[1725506622405,0.34,57102.0,57101.0,0.061291]
[1725506622900,0.3608,57105.0,57103.0,0.061289]
[1725506623104,0.3608,57105.0,57103.0,0.11366665]
[1725506623305,0.3608,57105.0,57104.0,0.05237765]
[1725506623506,0.3608,57105.0,57103.0,0.11366665]
[1725506624604,0.3608,57105.0,57103.0,0.061289]
[1725506625206,0.00026274,57110.0,57109.0,0.061283]
[1725506625412,0.00026274,57110.0,57109.0,0.422083]
[1725506626815,0.00026274,57110.0,57109.0,0.387003]
[1725506627015,0.061289,57103.0,57099.0,0.00026274]
[1725506627323,1.82638274,57110.0,57104.0,0.061288]
[1725506627324,0.34,57109.0,57104.0,0.061288]
[1725506628311,0.401283,57109.0,57101.0,0.00026274]
[1725506628609,0.401283,57109.0,57101.0,0.08771274]
[1725506628813,0.401283,57109.0,57101.0,0.14900374]
[1725506629209,0.387283,57109.0,57101.0,0.14900374]
[1725506629406,0.061283,57109.0,57103.0,0.061289]
[1725506630109,0.061283,57109.0,57104.0,0.061288]
[1725506630110,0.062283,57109.0,57104.0,0.061288]
[1725506630505,0.062283,57109.0,57105.0,0.061287]
[1725506630711,0.061283,57109.0,57105.0,0.061287]
[1725506630912,0.062283,57109.0,57105.0,0.061287]
[1725506632308,0.061284,57108.0,57107.0,0.05232436]
[1725506632617,0.001,57109.0,57106.0,0.05232436]
[1725506632819,0.001,57109.0,57107.0,0.05232436]
[1725506633015,0.341,57109.0,57107.0,0.05232436]
[1725506633213,0.341,57109.0,57105.0,0.063287]
[1725506633518,0.3608,57106.0,57105.0,0.061287]
[1725506633714,0.34326,57106.0,57105.0,0.061287]
[1725506634121,0.404546,57106.0,57104.0,0.05232436]
[1725506634321,0.404546,57106.0,57102.0,0.1129]
[1725506634917,0.34326,57106.0,57105.0,0.061287]
[1725506635614,0.34326,57106.0,57105.0,0.063287]
[1725506635822,0.341,57109.0,57105.0,0.063287]
[1725506636121,0.00026274,57110.0,57105.0,0.061287]
[1725506636317,0.001,57106.0,57105.0,0.063287]
[1725506637117,0.062283,57109.0,57106.0,0.061286]
[1725506637425,0.001,57109.0,57108.0,0.061284]
[1725506637822,0.001,57109.0,57108.0,0.331284]
[1725506638617,0.00026274,57110.0,57108.0,0.331284]
[1725506638921,0.00026274,57110.0,57109.0,0.061283]
[1725506640126,0.00126274,57110.0,57109.0,0.061283]
[1725506640322,0.00126274,57110.0,57109.0,0.04732712]
[1725506640820,0.00126274,57110.0,57109.0,0.09965148]
[1725506641027,0.00126274,57110.0,57109.0,0.04732712]
[1725506641820,0.00126274,57110.0,57108.0,0.272]
[1725506642017,0.00026274,57110.0,57108.0,0.27]
[1725506642315,0.00126274,57110.0,57109.0,0.002]
[1725506642920,0.00026274,57110.0,57109.0,0.061283]
[1725506643113,0.00126274,57110.0,57109.0,0.061283]
[1725506643317,0.00126274,57110.0,57109.0,0.026213]
[1725506644219,0.00126274,57110.0,57109.0,0.09616723]
[1725506644418,0.00126274,57110.0,57109.0,0.026213]
[1725506644822,0.00026274,57110.0,57109.0,0.026213]
[1725506645112,0.00126274,57110.0,57109.0,0.09816723]
[1725506645323,0.00126274,57110.0,57109.0,0.09809642]
[1725506645517,0.06254474,57110.0,57109.0,0.002]
[1725506645717,0.06254474,57110.0,57109.0,0.272]
[1725506646023,0.06254474,57110.0,57109.0,0.002]
[1725506646024,0.33254474,57110.0,57109.0,0.002]
[1725506646222,0.33154474,57110.0,57104.0,0.05241528]
[1725506646426,0.3588,57109.0,57106.0,0.27]
[1725506646618,0.00126274,57110.0,57106.0,0.27]
[1725506647025,0.061285,57107.0,57104.0,0.061288]
[1725506647220,0.00126274,57110.0,57106.0,0.27]
[1725506647421,0.00126274,57110.0,57109.0,0.27]
[1725506647621,0.00126274,57110.0,57109.0,0.331283]
[1725506648327,0.00026274,57110.0,57109.0,0.331283]
[1725506648526,0.00126274,57110.0,57109.0,0.331283]
[1725506649325,0.00026274,57110.0,57109.0,0.331283]
[1725506649527,0.00126274,57110.0,57109.0,0.061283]
[1725506649726,0.00126274,57110.0,57106.0,0.27]
[1725506649727,0.061283,57109.0,57106.0,0.27]
[1725506649928,0.061283,57109.0,57106.0,0.29127866]
[1725506650132,0.00126274,57110.0,57106.0,0.29127866]
[1725506650525,0.00126274,57110.0,57106.0,0.35256466]
[1725506651628,0.00026274,57110.0,57106.0,0.35256466]
[1725506651837,0.001,57109.0,57106.0,0.02127866]
[1725506652134,0.001,57109.0,57108.0,0.27]
[1725506652432,0.00026274,57110.0,57108.0,0.27]
[1725506652936,0.00126274,57110.0,57108.0,0.331284]
[1725506654332,0.00126274,57110.0,57109.0,0.061283]
[1725506656235,0.00026274,57110.0,57109.0,0.061283]
[1725506656436,0.00026274,57110.0,57109.0,0.04104383]
[1725506656629,0.00126274,57110.0,57109.0,0.04104383]
[1725506656826,0.00126274,57110.0,57108.0,0.27]
[1725506657922,0.00126274,57110.0,57109.0,0.026213]
[1725506658332,0.00126274,57110.0,57109.0,0.27]
[1725506659433,0.00026274,57110.0,57109.0,0.27]
[1725506659636,0.00126274,57110.0,57109.0,0.331283]
[1725506661437,0.00026274,57110.0,57109.0,0.331283]
[1725506661649,0.00126274,57110.0,57109.0,0.331283]
[1725506670954,0.3608,57127.0,57109.0,1.456603]
[1725506671257,0.3608,57127.0,57107.0,0.3608]
[1725506671258,0.36308001,57127.0,57122.0,0.27]
[1725506671458,0.061268,57123.0,57122.0,0.27]
[1725506672049,0.06127,57121.0,57117.0,0.00026274]
[1725506673961,0.06027,57121.0,57117.0,0.02680524]
[1725506674155,0.06027,57121.0,57117.0,0.00026274]
[1725506674559,0.061272,57119.0,57117.0,0.00226274]
[1725506676461,0.331272,57119.0,57117.0,0.00226274]
[1725506676658,0.331272,57119.0,57117.0,0.00026274]
[1725506677453,0.332272,57119.0,57117.0,0.00026274]
[1725506678457,0.331272,57119.0,57117.0,0.00026274]
[1725506679363,0.332272,57119.0,57117.0,0.00026274]
[1725506679564,0.062272,57119.0,57117.0,0.00026274]
[1725506679770,0.001,57119.0,57117.0,0.21403674]
[1725506680258,0.001,57119.0,57118.0,0.061273]
[1725506681361,0.69434901,57122.0,57118.0,0.061273]
[1725506681665,0.001,57119.0,57118.0,0.061273]
[1725506682267,0.271,57119.0,57118.0,0.061273]
[1725506683064,0.061273,57118.0,57117.0,0.00026274]
[1725506684271,0.062273,57118.0,57117.0,0.00026274]
[1725506692666,0.001,57118.0,57117.0,0.06153674]
[1725506694664,0.00232,57122.0,57117.0,0.94757674]
[1725506694977,0.3608,57127.0,57121.0,0.27]
[1725506695875,0.3608,57127.0,57125.0,0.061265]
[1725506695876,0.27,57126.0,57125.0,0.061265]
[1725506696868,0.27,57126.0,57125.0,0.062265]
[1725506697079,0.271,57126.0,57125.0,0.062265]
[1725506698071,0.111,57126.0,57125.0,0.062265]
[1725506699779,0.111,57126.0,57125.0,0.172265]
[1725506700364,0.111,57126.0,57125.0,0.19887715]
[1725506700978,0.111,57126.0,57125.0,0.08887715]
[1725506701373,0.111,57126.0,57125.0,0.02761215]
[1725506701374,0.172265,57126.0,57125.0,0.02761215]
[1725506701870,0.001,57126.0,57125.0,0.08887815]
[1725506702075,0.11,57138.0,57125.0,0.38841215]
[1725506702281,0.3608,57143.0,57125.0,0.38841215]
[1725506702282,0.06125,57140.0,57132.0,0.3608]
[1725506702580,0.3608,57143.0,57136.0,0.11]
[1725506702777,0.061251,57139.0,57136.0,0.11]
[1725506702980,0.061252,57138.0,57136.0,0.11]
[1725506703370,0.11,57137.0,57136.0,0.11]
[1725506703571,0.001,57138.0,57137.0,0.061253]
[1725506703771,0.111,57138.0,57137.0,0.205453]
[1725506703967,0.111,57138.0,57136.0,0.11]
[1725506704572,0.111,57138.0,57136.0,0.111]
[1725506707180,0.111,57138.0,57136.0,0.172253]
[1725506707389,0.02651482,57143.0,57142.0,0.061247]
[1725506707567,0.3608,57160.0,57142.0,0.4708]
[1725506707878,0.3608,57160.0,57159.0,0.11]
[1725506708183,0.422028,57160.0,57159.0,0.11]
[1725506708364,0.3608,57167.0,57159.0,0.11]
[1725506708365,0.02669444,57166.0,57159.0,0.11]
[1725506708565,0.061227,57161.0,57158.0,0.3608]
[1725506708774,0.422027,57161.0,57160.0,0.11]
[1725506708978,0.422027,57161.0,57158.0,0.2526]
[1725506708979,0.061229,57159.0,57158.0,0.2526]
[1725506709481,0.3608,57161.0,57158.0,0.2526]
[1725506709675,0.061223,57165.0,57160.0,0.11]
[1725506709866,0.11,57163.0,57160.0,0.11]